Creditor Name,Section,Voucher No,Cost Code,Detail Code,Type of Expenditure,Description,Payment Date, Net Amount 
1st Malvern Link Scouts,Electoral and Democratic Services,V090373,2300,5400,Third Party payments,Grants,06/12/2018, 500.00 
A J Taylor Limited,Property Services,V090538,4191,1000,Premises,Repairs & Maintenance,18/12/2018, 375.00 
A Meredith Associates,Community Services,V090314,6230,2800,Third Party payments,Contractors,04/12/2018," 1,000.00 "
Adams Integra Ltd,Development Control,V090313,7300,2800,Third Party payments,Contractors,04/12/2018," 2,000.00 "
Adrian Hope Tree Services,Environmental Services,V090297,0960,1000,Premises,Repairs & Maintenance,06/12/2018," 2,735.00 "
ADT Fire & Security PLC,Property Services,V090322,2972,1120,Premises,Maintenance Agreements,20/12/2018, 400.10 
Aldermore Invoice Finance,Property Services,V090413,2984,1000,Premises,Repairs & Maintenance,18/12/2018, 590.00 
Andrew Grout,Building Control,V090333,7500,2800,Third Party payments,Contractors,06/12/2018, 375.00 
Aquaforce Special Waste Ltd,Environmental Services,V090529,0920,1000,Premises,Repairs & Maintenance,20/12/2018, 315.00 
Arthur Spriggs & Sons Ltd,Environmental Services,V090440,0822,3510,Transport,Vehicle Maintenance,20/12/2018," 4,695.81 "
Arval UK Limited,Finance and Other Resources,V090507,6098,3600,Transport,Car Leases,27/12/2018,-811.59 
Arval UK Limited,Finance and Other Resources,V090507,6098,3600,Transport,Car Leases,27/12/2018,-940.09 
Arval UK Limited,Finance and Other Resources,V090507,6098,3600,Transport,Car Leases,18/12/2018, 811.59 
Arval UK Limited,Finance and Other Resources,V090507,6098,3600,Transport,Car Leases,18/12/2018, 940.09 
Boffy Arts Events People,Economic Development,V090346,6723,2800,Third Party payments,Contractors,06/12/2018," 1,200.00 "
Borwell Ltd,Economic Development,V090551,6734,5400,Third Party payments,Grants,18/12/2018," 1,000.00 "
Bromsgrove District Council,Finance and Other Resources,P090237,4320,5507,Third Party payments,OLA`s,04/12/2018," 32,166.66 "
Brookhire Vehicle Rental,Environmental Services,V090441,0728,3510,Transport,Vehicle Maintenance,14/12/2018, 579.84 
Brookhire Vehicle Rental,Environmental Services,V090461,0722,3510,Transport,Vehicle Maintenance,14/12/2018," 1,044.54 "
Brookhire Vehicle Rental,Environmental Services,V090462,0762,3510,Transport,Vehicle Maintenance,14/12/2018, 358.66 
Brookhire Vehicle Rental,Environmental Services,V090463,0764,3510,Transport,Vehicle Maintenance,14/12/2018, 278.40 
Brookhire Vehicle Rental,Environmental Services,V090464,0726,3510,Transport,Vehicle Maintenance,14/12/2018, 289.88 
Brookhire Vehicle Rental,Environmental Services,V090465,0722,3510,Transport,Vehicle Maintenance,14/12/2018, 431.64 
C J Bayliss (Hereford) Ltd,Property Services,V090375,1148,7010,Capital,Works,14/12/2018," 48,340.33 "
C P Davidson and Sons Ltd,Environmental Services,V090270,0795,3510,Transport,Vehicle Maintenance,18/12/2018, 310.60 
C P Davidson and Sons Ltd,Environmental Services,V090341,0777,3510,Transport,Vehicle Maintenance,20/12/2018," 1,627.50 "
Cameron Forecourt Ltd,Environmental Services,V090199,0925,2800,Third Party payments,Contractors,20/12/2018, 437.66 
Capita Business Services Limited,Finance and Other Resources,V090096,2607,5543,Supplies and Services,Credit Card Commission,06/12/2018, 345.63 
Chipside Ltd,Community Services,V090418,4100,2800,Third Party payments,Contractors,12/12/2018, 567.48 
CleanMy Ltd,Environmental Services,V090162,0935,1311,Premises,Contract Cleaning & Supplies,18/12/2018, 304.20 
CleanMy Ltd,Environmental Services,V090162,0935,1311,Premises,Contract Cleaning & Supplies,18/12/2018, 19.98 
CleanMy Ltd,Environmental Services,V090162,0935,1311,Premises,Contract Cleaning & Supplies,18/12/2018, 22.56 
CleanMy Ltd,Environmental Services,V090162,0935,1311,Premises,Contract Cleaning & Supplies,18/12/2018, 49.89 
CleanMy Ltd,Environmental Services,V090162,0935,1311,Premises,Contract Cleaning & Supplies,18/12/2018, 15.84 
CleanMy Ltd,Environmental Services,V090162,0935,1311,Premises,Contract Cleaning & Supplies,18/12/2018, 20.76 
Cleansing Service Group Ltd,Environmental Services,V090020,0900,2800,Third Party payments,Contractors,06/12/2018, 996.09 
CMS Supatrak Ltd,Environmental Services,V090300,0700,3100,Transport,"Vehicle General Costs (Cleaning,CMS FTA)",20/12/2018, 9.99 
CMS Supatrak Ltd,Environmental Services,V090300,0701,3100,Transport,"Vehicle General Costs (Cleaning,CMS FTA)",20/12/2018, 9.99 
CMS Supatrak Ltd,Environmental Services,V090300,0722,3100,Transport,"Vehicle General Costs (Cleaning,CMS FTA)",20/12/2018, 9.99 
CMS Supatrak Ltd,Environmental Services,V090300,0723,3100,Transport,"Vehicle General Costs (Cleaning,CMS FTA)",20/12/2018, 9.99 
CMS Supatrak Ltd,Environmental Services,V090300,0724,3100,Transport,"Vehicle General Costs (Cleaning,CMS FTA)",20/12/2018, 9.99 
CMS Supatrak Ltd,Environmental Services,V090300,0725,3100,Transport,"Vehicle General Costs (Cleaning,CMS FTA)",20/12/2018, 9.99 
CMS Supatrak Ltd,Environmental Services,V090300,0726,3100,Transport,"Vehicle General Costs (Cleaning,CMS FTA)",20/12/2018, 9.99 
CMS Supatrak Ltd,Environmental Services,V090300,0727,3100,Transport,"Vehicle General Costs (Cleaning,CMS FTA)",20/12/2018, 9.99 
CMS Supatrak Ltd,Environmental Services,V090300,0728,3100,Transport,"Vehicle General Costs (Cleaning,CMS FTA)",20/12/2018, 9.99 
CMS Supatrak Ltd,Environmental Services,V090300,0762,3100,Transport,"Vehicle General Costs (Cleaning,CMS FTA)",20/12/2018, 9.99 
CMS Supatrak Ltd,Environmental Services,V090300,0765,3100,Transport,"Vehicle General Costs (Cleaning,CMS FTA)",20/12/2018, 69.93 
CMS Supatrak Ltd,Environmental Services,V090300,0767,3100,Transport,"Vehicle General Costs (Cleaning,CMS FTA)",20/12/2018, 9.99 
CMS Supatrak Ltd,Environmental Services,V090300,0794,3100,Transport,"Vehicle General Costs (Cleaning,CMS FTA)",20/12/2018, 9.99 
CMS Supatrak Ltd,Environmental Services,V090300,0796,3100,Transport,"Vehicle General Costs (Cleaning,CMS FTA)",20/12/2018, 9.99 
CMS Supatrak Ltd,Environmental Services,V090300,0815,3100,Transport,"Vehicle General Costs (Cleaning,CMS FTA)",20/12/2018, 9.99 
CMS Supatrak Ltd,Environmental Services,V090300,0816,3100,Transport,"Vehicle General Costs (Cleaning,CMS FTA)",20/12/2018, 9.99 
CMS Supatrak Ltd,Environmental Services,V090300,0817,3100,Transport,"Vehicle General Costs (Cleaning,CMS FTA)",20/12/2018, 9.99 
CMS Supatrak Ltd,Environmental Services,V090300,0818,3100,Transport,"Vehicle General Costs (Cleaning,CMS FTA)",20/12/2018, 9.99 
CMS Supatrak Ltd,Environmental Services,V090300,0821,3100,Transport,"Vehicle General Costs (Cleaning,CMS FTA)",20/12/2018, 9.99 
CMS Supatrak Ltd,Environmental Services,V090300,0822,3100,Transport,"Vehicle General Costs (Cleaning,CMS FTA)",20/12/2018, 9.99 
CMS Supatrak Ltd,Environmental Services,V090300,0823,3100,Transport,"Vehicle General Costs (Cleaning,CMS FTA)",20/12/2018, 9.99 
CMS Supatrak Ltd,Environmental Services,V090300,0824,3100,Transport,"Vehicle General Costs (Cleaning,CMS FTA)",20/12/2018, 9.99 
CMS Supatrak Ltd,Environmental Services,V090300,0826,3100,Transport,"Vehicle General Costs (Cleaning,CMS FTA)",20/12/2018, 9.99 
CMS Supatrak Ltd,Environmental Services,V090300,0830,3100,Transport,"Vehicle General Costs (Cleaning,CMS FTA)",20/12/2018, 9.99 
CMS Supatrak Ltd,Environmental Services,V090300,0831,3100,Transport,"Vehicle General Costs (Cleaning,CMS FTA)",20/12/2018, 9.99 
CMS Supatrak Ltd,Environmental Services,V090300,0832,3100,Transport,"Vehicle General Costs (Cleaning,CMS FTA)",20/12/2018, 9.99 
Cognet Ltd,Property Services,V090518,4837,0600,Employees,Training,20/12/2018, 300.00 
Corona Energy,Property Services,V090547,2972,1303,Premises,Gas,18/12/2018, 559.66 
Croft Farm Waterpark,Housing,V090176,3340,2800,Third Party payments,Contractors,06/12/2018, 400.00 
Dura-ID Solutions Ltd,Environmental Services,V090202,0925,4210,Third Party payments,Advertising,20/12/2018, 752.70 
Electoral Reform Services,Electoral and Democratic Services,V090466,8120,4000,Supplies and Services,Printing & Photocopying,14/12/2018, 63.58 
Electoral Reform Services,Electoral and Democratic Services,V090466,8120,4220,Supplies and Services,Postage,14/12/2018, 197.79 
Elmslie House - Mrs A Taylor,Finance and Other Resources,V090459,6550,9252,Income,Commission,20/12/2018,-28.80 
Elmslie House - Mrs A Taylor,Finance and Other Resources,V090459,9549,8903,Balance Sheet,Receipts,20/12/2018, 288.00 
Encert Ltd,Economic Development,V090349,6550,2800,Third Party payments,Contractors,20/12/2018, 250.00 
Eurotow,Environmental Services,V090016,0815,3510,Transport,Vehicle Maintenance,06/12/2018, 307.50 
Fire Safe Services Ltd,Property Services,V090369,2972,1000,Premises,Repairs & Maintenance,06/12/2018, 815.64 
Fortis Living,Housing,V090530,3340,2800,Third Party payments,Contractors,18/12/2018, 500.00 
Fortis Living,Housing,V090596,3340,2800,Third Party payments,Contractors,20/12/2018, 541.84 
Franklin Gallimore,Property Services,V090599,2950,2800,Third Party payments,Contractors,20/12/2018, 900.00 
Freight Transport Association,Environmental Services,V090316,0925,0600,Employees,Training,20/12/2018, 287.00 
Freight Transport Association,Environmental Services,V090338,0900,3100,Transport,"Vehicle General Costs (Cleaning,CMS FTA)",06/12/2018, 143.75 
Freight Transport Association,Environmental Services,V090338,0900,3100,Transport,"Vehicle General Costs (Cleaning,CMS FTA)",06/12/2018, 256.08 
Freight Transport Association,Environmental Services,V090338,0900,3100,Transport,"Vehicle General Costs (Cleaning,CMS FTA)",06/12/2018, 249.48 
Geesink Norba Ltd,Environmental Services,V090056,0816,3510,Transport,Vehicle Maintenance,06/12/2018, 762.24 
Geesink Norba Ltd,Environmental Services,V090057,0822,3510,Transport,Vehicle Maintenance,06/12/2018, 264.94 
Geesink Norba Ltd,Environmental Services,V090097,0817,3510,Transport,Vehicle Maintenance,14/12/2018," 2,432.07 "
Global Payments,Finance and Other Resources,V090454,2607,5543,Supplies and Services,Credit Card Commission,18/12/2018, 7.00 
Global Payments,Finance and Other Resources,V090454,2607,5543,Supplies and Services,Credit Card Commission,18/12/2018, 860.78 
Global Payments,Finance and Other Resources,V090455,2607,5543,Supplies and Services,Credit Card Commission,18/12/2018, 7.00 
Global Payments,Finance and Other Resources,V090455,2607,5543,Supplies and Services,Credit Card Commission,18/12/2018, 586.42 
Ground Force Leisure,Environmental Services,V090317,0960,2000,Supplies and Services,Furniture & Equipment,20/12/2018, 79.00 
Ground Force Leisure,Environmental Services,V090317,0960,2000,Supplies and Services,Furniture & Equipment,20/12/2018, 260.00 
HAGS SMP Ltd,Environmental Services,V090080,0960,2000,Supplies and Services,Furniture & Equipment,06/12/2018, 968.00 
Haymarket Media Group Limited,Development Control,V090396,7300,5300,Supplies and Services,Subscriptions,12/12/2018," 1,600.00 "
Jark (Worcester) Ltd,Environmental Services,V090264,0920,0200,Employees,Agency Staff,04/12/2018, 529.20 
Jark (Worcester) Ltd,Environmental Services,V090264,0922,0200,Employees,Agency Staff,04/12/2018, 791.86 
Jark (Worcester) Ltd,Environmental Services,V090264,0935,0200,Employees,Agency Staff,04/12/2018, 711.48 
Jark (Worcester) Ltd,Environmental Services,V090381,0920,0200,Employees,Agency Staff,12/12/2018, 277.20 
Jark (Worcester) Ltd,Environmental Services,V090381,0925,0200,Employees,Agency Staff,12/12/2018, 686.07 
Jark (Worcester) Ltd,Environmental Services,V090381,0935,0200,Employees,Agency Staff,12/12/2018, 132.30 
Jark (Worcester) Ltd,Environmental Services,V090381,0935,0200,Employees,Agency Staff,12/12/2018, 508.20 
Jark (Worcester) Ltd,Environmental Services,V090527,0920,0200,Employees,Agency Staff,18/12/2018, 529.20 
Jark (Worcester) Ltd,Environmental Services,V090527,0922,0200,Employees,Agency Staff,18/12/2018, 165.16 
Jark (Worcester) Ltd,Environmental Services,V090527,0923,0200,Employees,Agency Staff,18/12/2018, 101.64 
Jark (Worcester) Ltd,Environmental Services,V090527,0925,0200,Employees,Agency Staff,18/12/2018, 448.31 
Jark (Worcester) Ltd,Environmental Services,V090527,0935,0200,Employees,Agency Staff,18/12/2018, 711.48 
Jark (Worcester) Ltd,Environmental Services,V090598,0920,0200,Employees,Agency Staff,20/12/2018, 434.70 
Jark (Worcester) Ltd,Environmental Services,V090598,0925,0200,Employees,Agency Staff,20/12/2018, 711.48 
Jark (Worcester) Ltd,Environmental Services,V090598,0935,0200,Employees,Agency Staff,20/12/2018, 609.84 
Jeremy Benn Asssociates Ltd,Finance and Other Resources,V090505,7006,2800,Third Party payments,Contractors,20/12/2018," 3,709.50 "
JK Autos Recovery Limited,Community Services,V090528,4226,2800,Third Party payments,Contractors,18/12/2018, 750.00 
John Goodwin,Economic Development,V090123,6550,2800,Third Party payments,Contractors,12/12/2018, 250.00 
Keith H Ballard,Environmental Services,V090586,4635,1000,Premises,Repairs & Maintenance,20/12/2018, 113.83 
Keith H Ballard,Environmental Services,V090586,4635,1000,Premises,Repairs & Maintenance,20/12/2018, 175.90 
Keith H Ballard,Environmental Services,V090586,4635,1000,Premises,Repairs & Maintenance,20/12/2018, 105.00 
Keith H Ballard,Environmental Services,V090586,4635,1000,Premises,Repairs & Maintenance,20/12/2018, 131.33 
Keith H Ballard,Environmental Services,V090586,4635,1000,Premises,Repairs & Maintenance,20/12/2018, 146.74 
Keith H Ballard,Environmental Services,V090586,4635,1000,Premises,Repairs & Maintenance,20/12/2018, 96.33 
Keith H Ballard,Environmental Services,V090590,0900,1000,Premises,Repairs & Maintenance,20/12/2018, 223.60 
Keith H Ballard,Environmental Services,V090590,0900,1000,Premises,Repairs & Maintenance,20/12/2018, 75.00 
Keith H Ballard,Environmental Services,V090591,4633,1000,Premises,Repairs & Maintenance,20/12/2018, 169.59 
Keith H Ballard,Environmental Services,V090591,4633,1000,Premises,Repairs & Maintenance,20/12/2018, 128.98 
Keith H Ballard,Environmental Services,V090592,4642,1000,Premises,Repairs & Maintenance,20/12/2018, 474.55 
Keith H Ballard,Environmental Services,V090592,4642,1000,Premises,Repairs & Maintenance,20/12/2018, 85.00 
Landscape Supply Company,Environmental Services,V090161,0960,2000,Supplies and Services,Furniture & Equipment,06/12/2018, 286.77 
Landscape Supply Company,Environmental Services,V090184,0920,2000,Supplies and Services,Furniture & Equipment,20/12/2018, 125.85 
Landscape Supply Company,Environmental Services,V090184,0960,2000,Supplies and Services,Furniture & Equipment,20/12/2018, 167.80 
Lloyds TSB Commercial Finance,Housing,V090425,1563,7201,Capital,Mandatory Disabled Facilities Grant,12/12/2018," 4,598.53 "
Lloyds TSB Commercial Finance,Housing,V090552,1563,7201,Capital,Mandatory Disabled Facilities Grant,18/12/2018, 808.50 
Lloyds TSB Commercial Finance,Housing,V090552,1563,7203,Capital,Mandatory DFG Top Up,18/12/2018," 10,000.00 "
M E Bennion,Environmental Services,V090406,0960,1000,Premises,Repairs & Maintenance,12/12/2018, 260.00 
M E Bennion,Environmental Services,V090408,0960,1000,Premises,Repairs & Maintenance,12/12/2018, 255.00 
M E Bennion,Property Services,V090412,2950,1000,Premises,Repairs & Maintenance,12/12/2018, 560.00 
Malvern Hills Trust,Finance and Other Resources,P090605,0007,4899,Transfer Payments,Precept Payments,20/12/2018," 113,000.00 "
Malvern Hills Trust,Tourism,V089957,6550,9252,Income,Commission,04/12/2018,-56.36 
Malvern Hills Trust,Tourism,V089957,9551,8902,Balance Sheet,Payments,04/12/2018, 563.60 
Malvern Hills Trust,Finance and Other Resources,V090458,6550,9252,Income,Commission,20/12/2018,-42.24 
Malvern Hills Trust,Finance and Other Resources,V090458,9551,8902,Balance Sheet,Payments,20/12/2018, 422.40 
Malvern Marauders,Electoral and Democratic Services,V090532,2300,5400,Third Party payments,Grants,18/12/2018, 500.00 
Malvern Town Council,Finance and Other Resources,P090606,0007,4899,Transfer Payments,Precept Payments,20/12/2018," 325,000.00 "
Melton Support Services,Property Services,V090330,6550,1311,Premises,Contract Cleaning & Supplies,20/12/2018, 350.00 
Midland Commercials Ltd,Environmental Services,V090250,0828,3510,Transport,Vehicle Maintenance,04/12/2018, 113.00 
Midland Commercials Ltd,Environmental Services,V090250,0828,3510,Transport,Vehicle Maintenance,04/12/2018," 1,870.24 "
Midland Commercials Ltd,Environmental Services,V090484,0823,3510,Transport,Vehicle Maintenance,20/12/2018, 90.00 
Midland Commercials Ltd,Environmental Services,V090484,0823,3510,Transport,Vehicle Maintenance,20/12/2018, 598.54 
Midland Commercials Ltd,Environmental Services,V090484,0823,3510,Transport,Vehicle Maintenance,20/12/2018, 604.69 
Midland Commercials Ltd,Environmental Services,V090485,0815,3510,Transport,Vehicle Maintenance,20/12/2018, 491.34 
Midland Commercials Ltd,Environmental Services,V090486,0817,3510,Transport,Vehicle Maintenance,20/12/2018, 330.05 
Midland Commercials Ltd,Environmental Services,V090486,0817,3510,Transport,Vehicle Maintenance,20/12/2018, 83.95 
Midland Communications Ltd,Finance and Other Resources,V090504,0900,4230,Supplies and Services,Telephones,21/12/2018, 34.50 
Midland Communications Ltd,Finance and Other Resources,V090504,4302,4230,Supplies and Services,Telephones,21/12/2018, 11.82 
Midland Communications Ltd,Finance and Other Resources,V090504,6550,4230,Supplies and Services,Telephones,21/12/2018, 102.65 
Midland Communications Ltd,Finance and Other Resources,V090504,6590,4230,Supplies and Services,Telephones,21/12/2018, 180.25 
Midland Communications Ltd,Finance and Other Resources,V090504,8631,4230,Supplies and Services,Telephones,21/12/2018, 111.75 
Midland Communications Ltd,Finance and Other Resources,V090504,8645,4230,Supplies and Services,Telephones,21/12/2018, 69.60 
Newsquest (Media Group) Limited,Development Control,V090382,7300,4210,Third Party payments,Advertising,20/12/2018, 252.00 
No5 Chambers,Property Services,V090542,2950,2811,Third Party payments,Legal services,18/12/2018, 750.00 
Olpro Ltd,Economic Development,V090435,6724,5400,Third Party payments,Grants,14/12/2018," 1,522.25 "
Osbornes Chartered Architects,Property Services,V090260,2950,2800,Third Party payments,Contractors,04/12/2018," 3,750.00 "
P F Cusack (Tool Supplies) Ltd,Environmental Services,V090343,0925,2700,Supplies and Services,Clothing and Uniforms,20/12/2018, 84.00 
P F Cusack (Tool Supplies) Ltd,Environmental Services,V090343,0925,2700,Supplies and Services,Clothing and Uniforms,20/12/2018, 140.00 
P F Cusack (Tool Supplies) Ltd,Environmental Services,V090343,0925,2700,Supplies and Services,Clothing and Uniforms,20/12/2018, 84.00 
P F Cusack (Tool Supplies) Ltd,Environmental Services,V090343,0925,2700,Supplies and Services,Clothing and Uniforms,20/12/2018, 56.00 
Pertemps Ltd,Environmental Services,V090380,0925,0200,Employees,Agency Staff,12/12/2018, 540.13 
Pertemps Ltd,Environmental Services,V090389,0920,0200,Employees,Agency Staff,12/12/2018, 335.14 
Pertemps Ltd,Environmental Services,V090389,0925,0200,Employees,Agency Staff,12/12/2018, 120.92 
Pertemps Ltd,Environmental Services,V090390,0925,0200,Employees,Agency Staff,12/12/2018, 306.54 
Pertemps Ltd,Environmental Services,V090391,0925,0200,Employees,Agency Staff,12/12/2018, 210.75 
Pertemps Ltd,Environmental Services,V090391,0929,0200,Employees,Agency Staff,12/12/2018, 89.83 
Pertemps Ltd,Environmental Services,V090391,0932,0200,Employees,Agency Staff,12/12/2018, 89.83 
Pertemps Ltd,Environmental Services,V090391,4317,0200,Employees,Agency Staff,12/12/2018, 114.02 
Pertemps Ltd,Environmental Services,V090392,0925,0200,Employees,Agency Staff,12/12/2018, 260.49 
Pertemps Ltd,Environmental Services,V090392,0932,0200,Employees,Agency Staff,12/12/2018, 137.10 
Pertemps Ltd,Environmental Services,V090399,0925,0200,Employees,Agency Staff,12/12/2018, 610.10 
Pertemps Ltd,Environmental Services,V090400,0922,0200,Employees,Agency Staff,12/12/2018, 352.06 
Pertemps Ltd,Environmental Services,V090400,0923,0200,Employees,Agency Staff,12/12/2018, 78.91 
Pertemps Ltd,Environmental Services,V090401,0925,0200,Employees,Agency Staff,12/12/2018, 599.81 
Pertemps Ltd,Environmental Services,V090403,0925,0200,Employees,Agency Staff,12/12/2018, 518.99 
Pertemps Ltd,Environmental Services,V090404,0923,0200,Employees,Agency Staff,12/12/2018, 91.05 
Pertemps Ltd,Environmental Services,V090404,0925,0200,Employees,Agency Staff,12/12/2018, 154.78 
Pertemps Ltd,Environmental Services,V090404,4317,0200,Employees,Agency Staff,12/12/2018, 84.99 
Pertemps Ltd,Environmental Services,V090405,0923,0200,Employees,Agency Staff,12/12/2018, 176.03 
Pertemps Ltd,Environmental Services,V090405,0925,0200,Employees,Agency Staff,12/12/2018, 78.91 
Pertemps Ltd,Environmental Services,V090405,4317,0200,Employees,Agency Staff,12/12/2018, 66.77 
Pertemps Ltd,Environmental Services,V090475,0922,0200,Employees,Agency Staff,14/12/2018, 134.10 
Pertemps Ltd,Environmental Services,V090475,0925,0200,Employees,Agency Staff,14/12/2018, 134.10 
Pertemps Ltd,Environmental Services,V090494,0923,0200,Employees,Agency Staff,14/12/2018, 434.01 
Pertemps Ltd,Environmental Services,V090495,0920,0200,Employees,Agency Staff,14/12/2018, 238.40 
Pertemps Ltd,Environmental Services,V090495,0925,0200,Employees,Agency Staff,14/12/2018, 86.38 
Pertemps Ltd,Environmental Services,V090495,4317,0200,Employees,Agency Staff,14/12/2018, 93.28 
Pertemps Ltd,Environmental Services,V090496,0925,0200,Employees,Agency Staff,14/12/2018, 466.43 
Pertemps Ltd,Environmental Services,V090497,0925,0200,Employees,Agency Staff,14/12/2018, 507.27 
Pertemps Ltd,Environmental Services,V090498,0925,0200,Employees,Agency Staff,14/12/2018, 646.15 
Pertemps Ltd,Environmental Services,V090499,0922,0200,Employees,Agency Staff,14/12/2018, 200.31 
Pertemps Ltd,Environmental Services,V090499,0925,0200,Employees,Agency Staff,14/12/2018, 194.24 
Pertemps Ltd,Environmental Services,V090501,0925,0200,Employees,Agency Staff,14/12/2018, 276.19 
Pertemps Ltd,Environmental Services,V090502,0925,0200,Employees,Agency Staff,14/12/2018, 497.75 
Pertemps Ltd,Environmental Services,V090503,0925,0200,Employees,Agency Staff,14/12/2018, 291.36 
PHS Group Ltd,Property Services,V090358,2972,1311,Premises,Contract Cleaning & Supplies,20/12/2018, 269.94 
Pirtek Worcester,Environmental Services,V090307,0815,3510,Transport,Vehicle Maintenance,04/12/2018, 267.26 
Pitney Bowes Ltd,Property Services,V090525,8645,2800,Third Party payments,Contractors,18/12/2018, 260.00 
PVC Vendo,Environmental Services,V090451,0925,3100,Transport,"Vehicle General Costs (Cleaning,CMS FTA)",20/12/2018, 252.60 
PVC Vendo,Environmental Services,V090506,0925,3100,Transport,"Vehicle General Costs (Cleaning,CMS FTA)",20/12/2018, 409.24 
PW Commercial Company Ltd T/A Printwaste,Property Services,V090433,8633,5506,Supplies and Services,Paper Recycling,20/12/2018, 255.00 
R Glover Ascroft Ltd,Environmental Services,V090225,0925,2000,Supplies and Services,Furniture & Equipment,20/12/2018, 160.80 
R Glover Ascroft Ltd,Environmental Services,V090225,0925,2000,Supplies and Services,Furniture & Equipment,20/12/2018, 168.00 
R Glover Ascroft Ltd,Environmental Services,V090225,0925,2000,Supplies and Services,Furniture & Equipment,20/12/2018, 424.80 
Reade Signs Ltd,Community Services,V090447,6230,2800,Third Party payments,Contractors,14/12/2018," 9,082.81 "
Red Kite Network Limited,Property Services,V090258,2950,2800,Third Party payments,Contractors,20/12/2018," 10,260.00 "
Redactive Publishing Limited,Development Control,V090368,7300,4210,Third Party payments,Advertising,20/12/2018, 950.00 
Refuse Vehicle Solutions Limited,Environmental Services,V090075,0831,3510,Transport,Vehicle Maintenance,12/12/2018, 536.25 
Roadmark Ltd,Property Services,V090422,0900,1000,Premises,Repairs & Maintenance,20/12/2018, 500.00 
Robinson Low Francis,Property Services,V090331,1147,7000,Capital,Fees,20/12/2018," 2,595.00 "
Royal Mail Stamps and Collectibles,Tourism,V090537,6550,2600,Supplies and Services,Items for Re-sale,18/12/2018, 526.56 
Scotia Binding Supplies Ltd,Property Services,V090519,8620,4000,Supplies and Services,Printing & Photocopying,18/12/2018, 289.00 
Signs Central,Environmental Services,V090290,0925,2700,Supplies and Services,Clothing and Uniforms,04/12/2018, 38.85 
Signs Central,Environmental Services,V090290,0925,2700,Supplies and Services,Clothing and Uniforms,04/12/2018, 106.25 
Signs Central,Environmental Services,V090290,0925,2700,Supplies and Services,Clothing and Uniforms,04/12/2018, 106.25 
Signs Central,Environmental Services,V090290,0925,2700,Supplies and Services,Clothing and Uniforms,04/12/2018, 127.50 
Signs Central,Environmental Services,V090290,0925,2700,Supplies and Services,Clothing and Uniforms,04/12/2018, 26.85 
Signs Central,Environmental Services,V090290,0925,2700,Supplies and Services,Clothing and Uniforms,04/12/2018, 38.85 
Signs Central,Environmental Services,V090290,0925,2700,Supplies and Services,Clothing and Uniforms,04/12/2018, 56.00 
Signs Central,Environmental Services,V090290,0925,2700,Supplies and Services,Clothing and Uniforms,04/12/2018, 56.00 
Signs Central,Environmental Services,V090290,0925,2700,Supplies and Services,Clothing and Uniforms,04/12/2018, 63.75 
Signs Central,Environmental Services,V090290,0925,2700,Supplies and Services,Clothing and Uniforms,04/12/2018, 70.00 
Signs Central,Environmental Services,V090290,0925,2700,Supplies and Services,Clothing and Uniforms,04/12/2018, 90.00 
Signs Central,Environmental Services,V090561,0925,2700,Supplies and Services,Clothing and Uniforms,20/12/2018, 35.80 
Signs Central,Environmental Services,V090561,0925,2700,Supplies and Services,Clothing and Uniforms,20/12/2018, 150.00 
Signs Central,Environmental Services,V090561,0925,2700,Supplies and Services,Clothing and Uniforms,20/12/2018, 11.85 
Signs Central,Environmental Services,V090561,0925,2700,Supplies and Services,Clothing and Uniforms,20/12/2018, 90.00 
Signs Central,Environmental Services,V090561,0925,2700,Supplies and Services,Clothing and Uniforms,20/12/2018, 11.25 
Signs Central,Environmental Services,V090561,0925,2700,Supplies and Services,Clothing and Uniforms,20/12/2018, 85.00 
Signs Central,Environmental Services,V090561,0925,2700,Supplies and Services,Clothing and Uniforms,20/12/2018, 106.25 
Signs Central,Environmental Services,V090561,0925,2700,Supplies and Services,Clothing and Uniforms,20/12/2018, 63.75 
Signs Central,Environmental Services,V090561,0925,2700,Supplies and Services,Clothing and Uniforms,20/12/2018, 210.00 
Signs Central,Environmental Services,V090561,0925,2700,Supplies and Services,Clothing and Uniforms,20/12/2018, 60.00 
Snape Construction Ltd,Housing,V090203,1563,7201,Capital,Mandatory Disabled Facilities Grant,12/12/2018," 2,779.00 "
Tenbury Transport Trust,Community Services,V090493,4070,5529,Third Party payments,Concessionary Fares,14/12/2018, 311.00 
Thamesdown Recycling,Environmental Services,V090014,4314,2800,Third Party payments,Contractors,04/12/2018, 700.00 
The Community Housing Group Limited,Finance and Other Resources,V089991,4311,2800,Third Party payments,Contractors,04/12/2018, 240.43 
The Community Housing Group Limited,Finance and Other Resources,V089991,4320,5500,Supplies and Services,Miscellaneous Expenses,04/12/2018, 104.05 
The Community Housing Group Limited,Finance and Other Resources,V090460,4311,2800,Third Party payments,Contractors,20/12/2018, 343.31 
Three Counties Showground,Community Services,V090564,4426,2800,Third Party payments,Contractors,20/12/2018," 1,108.00 "
Trash UK Limited,Environmental Services,V090130,0777,3150,Transport,Vehicle Hire,18/12/2018, 850.00 
Trash UK Limited,Environmental Services,V090130,0777,3150,Transport,Vehicle Hire,18/12/2018, 850.00 
Trash UK Limited,Environmental Services,V090130,0777,3150,Transport,Vehicle Hire,18/12/2018, 850.00 
Trash UK Limited,Environmental Services,V090130,0823,3150,Transport,Vehicle Hire,18/12/2018, 680.00 
Trash UK Limited,Environmental Services,V090164,0815,3150,Transport,Vehicle Hire,18/12/2018, 380.00 
Trash UK Limited,Environmental Services,V090164,0823,3150,Transport,Vehicle Hire,18/12/2018, 510.00 
Trash UK Limited,Environmental Services,V090311,0777,3150,Transport,Vehicle Hire,20/12/2018," 1,190.00 "
Trash UK Limited,Environmental Services,V090311,0777,3150,Transport,Vehicle Hire,20/12/2018, 850.00 
Trash UK Limited,Environmental Services,V090311,0822,3150,Transport,Vehicle Hire,20/12/2018," 1,360.00 "
Trash UK Limited,Environmental Services,V090311,0822,3150,Transport,Vehicle Hire,20/12/2018, 340.00 
Truck Tyre Solutions Ltd,Environmental Services,V089986,0831,3320,Transport,Tyres,06/12/2018, 453.00 
Truck Tyre Solutions Ltd,Environmental Services,V089987,0777,3320,Transport,Tyres,06/12/2018, 474.00 
Truck Tyre Solutions Ltd,Environmental Services,V089988,0818,3320,Transport,Tyres,06/12/2018," 1,204.00 "
Truck Tyre Solutions Ltd,Environmental Services,V089989,0822,3320,Transport,Tyres,06/12/2018, 961.80 
Truck Tyre Solutions Ltd,Environmental Services,V090205,0832,3320,Transport,Tyres,20/12/2018, 473.00 
Truck Tyre Solutions Ltd,Environmental Services,V090206,0828,3320,Transport,Tyres,20/12/2018, 946.00 
Truck Tyre Solutions Ltd,Environmental Services,V090207,0828,3320,Transport,Tyres,20/12/2018," 1,533.00 "
Truck Tyre Solutions Ltd,Environmental Services,V090213,0795,3320,Transport,Tyres,20/12/2018," 1,514.00 "
Truck Tyre Solutions Ltd,Environmental Services,V090226,0925,3320,Transport,Tyres,20/12/2018," 1,850.00 "
Vale Press,Communications and Policy,V090294,8864,4220,Supplies and Services,Postage,04/12/2018," 2,590.00 "
Vision Techniques (UK) Ltf,Environmental Services,V089993,0777,3510,Transport,Vehicle Maintenance,06/12/2018, 260.00 
Volkswagen Financial Services UK Ltd,Community Services,V090423,6098,3150,Transport,Vehicle Hire,20/12/2018, 335.24 
VS Security/KBL Events Ltd,Economic Development,V090350,6723,2800,Third Party payments,Contractors,06/12/2018, 602.00 
West Mercia Energy,Environmental Services,V089997,9918,8902,Balance Sheet,Payments,04/12/2018," 3,265.89 "
West Mercia Energy,Environmental Services,V089998,9918,8902,Balance Sheet,Payments,04/12/2018," 3,545.52 "
West Mercia Energy,Environmental Services,V089999,9918,8902,Balance Sheet,Payments,04/12/2018," 2,763.25 "
West Mercia Energy,Environmental Services,V090022,9918,8902,Balance Sheet,Payments,04/12/2018," 3,111.91 "
West Mercia Energy,Environmental Services,V090094,9918,8902,Balance Sheet,Payments,06/12/2018," 2,978.67 "
West Mercia Energy,Environmental Services,V090128,9918,8902,Balance Sheet,Payments,14/12/2018," 3,174.05 "
West Mercia Energy,Environmental Services,V090192,9918,8902,Balance Sheet,Payments,18/12/2018," 3,031.84 "
West Mercia Energy,Environmental Services,V090214,9918,8902,Balance Sheet,Payments,18/12/2018," 3,064.67 "
West Mercia Energy,Environmental Services,V090275,9918,8902,Balance Sheet,Payments,20/12/2018," 3,125.91 "
West Mercia Energy,Environmental Services,V090443,9918,8902,Balance Sheet,Payments,20/12/2018," 3,039.99 "
West Mercia Energy,Environmental Services,V090444,9918,8902,Balance Sheet,Payments,20/12/2018," 2,987.03 "
West Mercia Fork Truck Service Ltd,Environmental Services,V090376,0715,3510,Transport,Vehicle Maintenance,20/12/2018, 277.74 
West Mercia Fork Truck Service Ltd,Environmental Services,V090386,1401,7000,Capital,Fees,06/12/2018," 10,795.00 "
White Consultants: Environment Ltd,Finance and Other Resources,V090427,7006,2800,Third Party payments,Contractors,12/12/2018," 9,445.00 "
White Consultants: Environment Ltd,Finance and Other Resources,V090427,7006,2800,Third Party payments,Contractors,12/12/2018," 1,025.00 "
Whitefoot PR Ltd,Tourism,V090221,6550,2600,Supplies and Services,Items for Re-sale,20/12/2018, 250.00 
Wokingham Borough Council,Electoral and Democratic Services,V090445,8120,0600,Employees,Training,20/12/2018," 1,229.79 "
Worcestershire County Council,Community Services,V090374,6098,5527,Supplies and Services,Contributions,06/12/2018," 2,250.00 "
Worcestershire County Council,Environmental Services,V090474,0922,5507,Third Party payments,OLA`s,20/12/2018," 30,883.88 "
Worcestershire County Council,Environmental Services,V090474,0932,5507,Third Party payments,OLA`s,20/12/2018," 7,099.12 "
Wright Staff Recruitment Ltd,Environmental Services,V090298,0923,0200,Employees,Agency Staff,04/12/2018, 394.97 
Wright Staff Recruitment Ltd,Environmental Services,V090298,0925,0200,Employees,Agency Staff,04/12/2018, 617.95 
Wright Staff Recruitment Ltd,Environmental Services,V090298,0929,0200,Employees,Agency Staff,04/12/2018, 71.23 
Wright Staff Recruitment Ltd,Environmental Services,V090426,0922,0200,Employees,Agency Staff,12/12/2018, 77.70 
Wright Staff Recruitment Ltd,Environmental Services,V090426,0922,0200,Employees,Agency Staff,12/12/2018, 136.52 
Wright Staff Recruitment Ltd,Environmental Services,V090426,0923,0200,Employees,Agency Staff,12/12/2018, 326.92 
Wright Staff Recruitment Ltd,Environmental Services,V090426,0925,0200,Employees,Agency Staff,12/12/2018, 617.90 
Wright Staff Recruitment Ltd,Environmental Services,V090512,0923,0200,Employees,Agency Staff,18/12/2018, 348.47 
Wright Staff Recruitment Ltd,Environmental Services,V090512,0923,0200,Employees,Agency Staff,18/12/2018, 100.36 
Wright Staff Recruitment Ltd,Environmental Services,V090512,0925,0200,Employees,Agency Staff,18/12/2018, 639.49 
Wychavon District Council,Finance and Other Resources,V090309,3800,5507,Third Party payments,OLA`s,06/12/2018," 25,212.50 "
Wychavon District Council,Finance and Other Resources,V090309,8013,5507,Third Party payments,OLA`s,06/12/2018," 25,212.50 "
Wychavon District Council,Finance and Other Resources,V090310,8013,5500,Supplies and Services,Miscellaneous Expenses,06/12/2018, 333.32 
Wychavon District Council,Finance and Other Resources,V090339,2619,5507,Third Party payments,OLA`s,12/12/2018, 552.27 
Young Air Conditioning Ltd,Property Services,V090415,0900,1000,Premises,Repairs & Maintenance,12/12/2018, 630.00 
